Workbook

Sheet Ejecuc
A2: SISTEMA DE PRESUPUESTO DISTRITAL - PREDIS
A3: EJECUCIÓN PRESUPUESTO | L3: =+Plano!A5 -> VIGENCIA 2019 | M3: =MID(L3,10,4) -> 2019
A4: INFORME DE EJECUCIONES DEL PRESUPUESTO DE GASTOS E INVERSIONES | L4: =+Plano!A6 -> MES 8 | M4: =MID(L4,5,2) -> 8
M5: =VALUE(M4) -> 8
A6: ENTIDAD: | B6: 119 - SECRETARÍA DISTRITAL DE CULTURA, RECREACIÓN Y DEPORTE | F6: MES: | I6: =VLOOKUP(M5,mes,2,0) -> AGOSTO | L6: 1 | M6: ENERO
A7: UNIDAD EJECUTORA: | B7: 01 - UNIDAD 01 | F7: VIGENCIA FISCAL: | I7: =+M3 -> 2019 | L7: 2 | M7: FEBRERO
A8: CÓDIGO | B8: NOMBRE | C8: APROPIACION DISPONIBLE | D8: COMPROMISOS MES | E8: COMPROMISOS ACUMULADOS | G8: GIRO MES | H8: AUTORIZACIONES DE GIRO ACUMULADO | L8: 3 | M8: MARZO
A9: 3 | B9: =VLOOKUP($A9,DATO1,2,0) -> GASTOS | C9: 201769896000 | D9: 1619306597 | E9: 104353820692 | F9: =+E9/C9 -> 0.5171922212 | G9: 7041727096 | H9: 67045138542 | I9: =IF(C9=" ,00"," ",+H9/C9) -> 0.332285142 | L9: 4 | M9: ABRIL
A10: 3-1 | B10: =VLOOKUP($A10,DATO1,2,0) -> GASTOS DE FUNCIONAMIENTO | C10: 22831867000 | D10: 1142782811 | E10: 13890124555 | F10: =+E10/C10 -> 0.6083656915 | G10: 1379902618 | H10: 12526287770 | I10: 0.5486317772 | L10: 5 | M10: MAYO
A11: 3-1-1 | B11: Gastos de personal | C11: 19088692000 | D11: 1123785004 | E11: 10707824581 | F11: 0.5609511946 | G11: 1145528130 | H11: 10636695979 | I11: 0.557224978 | L11: 6 | M11: JUNIO
A12: 3-1-1-01 | B12: Planta de personal permanente | C12: 19088692000 | D12: 1123785004 | E12: 10707824581 | F12: 0.5609511946 | G12: 1145528130 | H12: 10636695979 | I12: 0.557224978 | L12: 7 | M12: JULIO
A13: 3-1-1-01-01 | B13: Factores constitutivos de salario | C13: 14009646739 | D13: 821672863 | E13: 8463326154 | F13: 0.6041070351 | G13: 839770406 | H13: 8392197552 | I13: 0.5990299191 | L13: 8 | M13: AGOSTO
A14: 3-1-1-01-01-01 | B14: Factores salariales comunes | C14: 9971517739 | D14: 632869187 | E14: 5806207822 | F14: 0.5822792451 | G14: 646489839 | H14: 5735079220 | I14: 0.575146068 | L14: 9 | M14: SEPTIEMBRE
A15: 3-1-1-01-01-01-0001 | B15: Sueldo básico | C15: 7290228403 | D15: 537845470 | E15: 4792763525 | F15: 0.6574229585 | G15: 548420092 | H15: 4721634923 | I15: 0.6476662543 | L15: 10 | M15: OCTUBRE
A16: 3-1-1-01-01-01-0004 | B16: Gastos de representación | C16: 771188000 | D16: 51383051 | E16: 452119170 | F16: 0.5862632328 | G16: 51383051 | H16: 452119170 | I16: 0.5862632328 | L16: 11 | M16: NOVIEMBRE
A17: 3-1-1-01-01-01-0005 | B17: Horas Extras, Dominicales, Festivos, Recargo Nocturno y Trabajo Suplementario | C17: 64446336 | D17: 1210948 | E17: 10615524 | F17: 0.1647188135 | G17: 1210948 | H17: 10615524 | I17: 0.1647188135 | L17: 12 | M17: DICIEMBRE
A18: 3-1-1-01-01-01-0006 | B18: Auxilio de transporte | C18: 1106000 | D18: 97032 | E18: 776256 | F18: 0.7018589512 | G18: 97032 | H18: 776256 | I18: 0.7018589512
A19: 3-1-1-01-01-01-0007 | B19: Subsidio de alimentación | C19: 12755000 | D19: 690108 | E19: 6613680 | F19: 0.5185166601 | G19: 690108 | H19: 6613680 | I19: 0.5185166601
A20: 3-1-1-01-01-01-0008 | B20: Bonificación por servicios prestados | C20: 240907000 | D20: 18300434 | E20: 184632433 | F20: 0.7664054303 | G20: 18300434 | H20: 184632433 | I20: 0.7664054303
A21: 3-1-1-01-01-01-0010 | B21: Prima de navidad | C21: 1074930000 | D21: 5467227 | E21: 17764787 | F21: 0.0165264594 | G21: 7870240 | H21: 17764787 | I21: 0.0165264594
A22: 3-1-1-01-01-01-0011 | B22: Prima de vacaciones | C22: 515957000 | D22: 17874917 | E22: 340922447 | F22: 0.6607574798 | G22: 18517934 | H22: 340922447 | I22: 0.6607574798
A23: 3-1-1-01-01-02 | B23: Factores salariales especiales | C23: 4038129000 | D23: 188803676 | E23: 2657118332 | F23: 0.658007293 | G23: 193280567 | H23: 2657118332 | I23: 0.658007293
A24: 3-1-1-01-01-02-0001 | B24: Prima de antigüedad | C24: 149845000 | D24: 11310344 | E24: 102550351 | F24: 0.6843761954 | G24: 11310344 | H24: 102550351 | I24: 0.6843761954
A25: 3-1-1-01-01-02-0002 | B25: Prima Técnica | C25: 2699255000 | D25: 177493332 | E25: 1501447910 | F25: 0.556245301 | G25: 177493332 | H25: 1501447910 | I25: 0.556245301
A26: 3-1-1-01-01-02-0003 | B26: Prima Semestral | C26: 1189029000 | D26: ,00 | E26: 1053120071 | F26: 0.885697549 | G26: 4476891 | H26: 1053120071 | I26: 0.885697549
A27: 3-1-1-01-02 | B27: Contribuciones inherentes a la nómina | C27: 4859646000 | D27: 294039851 | E27: 2079368037 | F27: 0.4278846725 | G27: 296644975 | H27: 2079368037 | I27: 0.4278846725
A28: 3-1-1-01-02-01 | B28: Aportes a la seguridad social en pensiones | C28: 1353042000 | D28: 105269988 | E28: 736508394 | F28: 0.5443352047 | G28: 105269988 | H28: 736508394 | I28: 0.5443352047
A29: 3-1-1-01-02-01-0001 | B29: Aportes a la seguridad social en pensiones públicas | C29: 580662000 | D29: 59360473 | E29: 406865522 | F29: 0.7006925234 | G29: 59360473 | H29: 406865522 | I29: 0.7006925234
A30: 3-1-1-01-02-01-0002 | B30: Aportes a la seguridad social en pensiones privadas | C30: 772380000 | D30: 45909515 | E30: 329642872 | F30: 0.4267884616 | G30: 45909515 | H30: 329642872 | I30: 0.4267884616
A31: 3-1-1-01-02-02 | B31: Aportes a la seguridad social en salud | C31: 958433000 | D31: 74341888 | E31: 520773994 | F31: 0.5433598321 | G31: 74341888 | H31: 520773994 | I31: 0.5433598321
A32: 3-1-1-01-02-02-0002 | B32: Aportes a la seguridad social en salud privada | C32: 958433000 | D32: 74341888 | E32: 520773994 | F32: 0.5433598321 | G32: 74341888 | H32: 520773994 | I32: 0.5433598321
A33: 3-1-1-01-02-03 | B33: Aportes de cesantías | C33: 1306127000 | D33: 16756775 | E33: 99466849 | F33: 0.07615404092 | G33: 19361899 | H33: 99466849 | I33: 0.07615404092
A34: 3-1-1-01-02-03-0001 | B34: Aportes de cesantías a fondos públicos | C34: 612791000 | D34: 13778124 | E34: 90738480 | F34: 0.1480741068 | G34: 16383248 | H34: 90738480 | I34: 0.1480741068
A35: 3-1-1-01-02-03-0002 | B35: Aportes de cesantías a fondos privados | C35: 693336000 | D35: 2978651 | E35: 8728369 | F35: 0.01258894533 | G35: 2978651 | H35: 8728369 | I35: 0.01258894533
A36: 3-1-1-01-02-04 | B36: Aportes a cajas de compensación familiar | C36: 519242000 | D36: 40499500 | E36: 301799300 | F36: 0.5812305245 | G36: 40499500 | H36: 301799300 | I36: 0.5812305245
A37: 3-1-1-01-02-04-0001 | B37: Compensar | C37: 519242000 | D37: 40499500 | E37: 301799300 | F37: 0.5812305245 | G37: 40499500 | H37: 301799300 | I37: 0.5812305245
A38: 3-1-1-01-02-05 | B38: Aportes generales al sistema de riesgos laborales | C38: 78864000 | D38: 6521200 | E38: 43376600 | F38: 0.5500177521 | G38: 6521200 | H38: 43376600 | I38: 0.5500177521
A39: 3-1-1-01-02-05-0002 | B39: Aportes generales al sistema de riesgos laborales privados | C39: 78864000 | D39: 6521200 | E39: 43376600 | F39: 0.5500177521 | G39: 6521200 | H39: 43376600 | I39: 0.5500177521
A40: 3-1-1-01-02-06 | B40: Aportes al ICBF | C40: 389438000 | D40: 30376700 | E40: 226365300 | F40: 0.5812614588 | G40: 30376700 | H40: 226365300 | I40: 0.5812614588
A41: 3-1-1-01-02-06-0001 | B41: =VLOOKUP($A41,DATO1,2,0) -> Aportes al ICBF de funcionarios | C41: 389438000 | D41: 30376700 | E41: 226365300 | F41: 0.5812614588 | G41: 30376700 | H41: 226365300 | I41: 0.5812614588
A42: 3-1-1-01-02-07 | B42: Aportes al SENA | C42: 64922000 | D42: 5071000 | E42: 37786000 | F42: 0.5820215027 | G42: 5071000 | H42: 37786000 | I42: 0.5820215027
A43: 3-1-1-01-02-07-0001 | B43: Aportes al SENA de funcionarios | C43: 64922000 | D43: 5071000 | E43: 37786000 | F43: 0.5820215027 | G43: 5071000 | H43: 37786000 | I43: 0.5820215027
A44: 3-1-1-01-02-08 | B44: Aportes a la ESAP | C44: 64922000 | D44: 5071000 | E44: 37786000 | F44: 0.5820215027 | G44: 5071000 | H44: 37786000 | I44: 0.5820215027
A45: 3-1-1-01-02-08-0001 | B45: Aportes a la ESAP de funcionarios | C45: 64922000 | D45: 5071000 | E45: 37786000 | F45: 0.5820215027 | G45: 5071000 | H45: 37786000 | I45: 0.5820215027
A46: 3-1-1-01-02-09 | B46: Aportes a escuelas industriales e institutos técnicos | C46: 124656000 | D46: 10131800 | E46: 75505600 | F46: 0.6057117186 | G46: 10131800 | H46: 75505600 | I46: 0.6057117186
A47: 3-1-1-01-02-09-0001 | B47: Aportes a escuelas industriales e institutos técnicos de funcionarios | C47: 124656000 | D47: 10131800 | E47: 75505600 | F47: 0.6057117186 | G47: 10131800 | H47: 75505600 | I47: 0.6057117186
A48: 3-1-1-01-03 | B48: Remuneraciones no constitutivas de factor salarial | C48: 219399261 | D48: 8072290 | E48: 165130390 | F48: 0.7526478861 | G48: 9112749 | H48: 165130390 | I48: 0.7526478861
A49: 3-1-1-01-03-01 | B49: Indemnización por vacaciones | C49: 27594261 | D49: 3002891 | E49: 24610179 | F49: =+E49/C49 -> 0.8918586006 | G49: 3988851 | H49: 24610179 | I49: =IF(C49=" ,00"," ",+H49/C49) -> 0.8918586006
A50: 3-1-1-01-03-02 | B50: Bonificación por recreación | C50: 40758000 | D50: 1388709 | E50: 26816230 | F50: 0.6579378282 | G50: 1443208 | H50: 26816230 | I50: 0.6579378282
A51: 3-1-1-01-03-05 | B51: Reconocimiento por permanencia en el servicio público - Bogotá D.C. | C51: 92359000 | D51: ,00 | E51: 75803978 | F51: 0.8207535595 | G51: ,00 | H51: 75803978 | I51: 0.8207535595
A52: 3-1-1-01-03-07 | B52: Reconocimiento por Coordinación | C52: 58688000 | D52: 3680690 | E52: 37900003 | F52: 0.6457879464 | G52: 3680690 | H52: 37900003 | I52: 0.6457879464
A53: 3-1-1-02 | B53: Personal supernumerario y temporal | C53: ,00 | D53: ,00 | E53: ,00 | F53: 0 | G53: ,00 | H53: ,00 | I53: 0
A54: 3-1-1-02-01 | B54: Factores constitutivos de salario | C54: ,00 | D54: ,00 | E54: ,00 | F54: 0 | G54: ,00 | H54: ,00 | I54: 0
A55: 3-1-1-02-01-01 | B55: Factores salariales comunes | C55: ,00 | D55: ,00 | E55: ,00 | F55: 0 | G55: ,00 | H55: ,00 | I55: 0
A56: 3-1-1-02-01-01-0001 | B56: Sueldo básico | C56: ,00 | D56: ,00 | E56: ,00 | F56: 0 | G56: ,00 | H56: ,00 | I56: 0
A57: 3-1-1-02-01-02 | B57: Factores salariales especiales | C57: ,00 | D57: ,00 | E57: ,00 | F57: 0 | G57: ,00 | H57: ,00 | I57: 0
A58: 3-1-1-02-01-02-0001 | B58: Prima de antigüedad | C58: ,00 | D58: ,00 | E58: ,00 | F58: 0 | G58: ,00 | H58: ,00 | I58: 0
A59: 3-1-1-02-02 | B59: Contribuciones inherentes a la nómina | C59: ,00 | D59: ,00 | E59: ,00 | F59: 0 | G59: ,00 | H59: ,00 | I59: 0
A60: 3-1-1-02-02-01 | B60: Aportes a la seguridad social en pensiones | C60: ,00 | D60: ,00 | E60: ,00 | F60: 0 | G60: ,00 | H60: ,00 | I60: 0
A61: 3-1-1-02-02-01-0001 | B61: Aportes a la seguridad social en pensiones públicas | C61: ,00 | D61: ,00 | E61: ,00 | F61: 0 | G61: ,00 | H61: ,00 | I61: 0
A62: 3-1-1-02-02-03 | B62: Aportes de cesantías | C62: ,00 | D62: ,00 | E62: ,00 | F62: 0 | G62: ,00 | H62: ,00 | I62: 0
A63: 3-1-1-02-02-03-0001 | B63: Aportes de cesantías a fondos públicos | C63: ,00 | D63: ,00 | E63: ,00 | F63: 0 | G63: ,00 | H63: ,00 | I63: 0
A64: 3-1-1-02-02-04 | B64: Aportes a cajas de compensación familiar | C64: ,00 | D64: ,00 | E64: ,00 | F64: 0 | G64: ,00 | H64: ,00 | I64: 0
A65: 3-1-1-02-02-04-0001 | B65: Compensar | C65: ,00 | D65: ,00 | E65: ,00 | F65: 0 | G65: ,00 | H65: ,00 | I65: 0
A66: 3-1-2 | B66: Adquisición de bienes y servicios | C66: 3742675000 | D66: 18997807 | E66: 3182299974 | F66: 0.8502741953 | G66: 234374488 | H66: 1889591791 | I66: 0.504877338
A67: 3-1-2-02 | B67: Adquisiciones diferentes de activos no financieros | C67: 3742675000 | D67: 18997807 | E67: 3182299974 | F67: 0.8502741953 | G67: 234374488 | H67: 1889591791 | I67: 0.504877338
A68: 3-1-2-02-01 | B68: Materiales y suministros | C68: 153510372 | D68: ,00 | E68: 143430398 | F68: 0.9343368538 | G68: 13203949 | H68: 40383848 | I68: 0.2630691821
A69: 3-1-2-02-01-01 | B69: Productos alimenticios, bebidas y tabaco; textiles, prendas de vestir y productos de cuero | C69: 1129000 | D69: ,00 | E69: 1129000 | F69: 1 | G69: 660420 | H69: 683625 | I69: 0.605513729
A70: 3-1-2-02-01-01-0005 | B70: Artículos textiles (excepto prendas de vestir) | C70: 1129000 | D70: ,00 | E70: 1129000 | F70: 1 | G70: 660420 | H70: 683625 | I70: 0.605513729
A71: 3-1-2-02-01-01-0006 | B71: Dotación (prendas de vestir y calzado) | C71: ,00 | D71: ,00 | E71: ,00 | F71: 0 | G71: ,00 | H71: ,00 | I71: 0
A72: 3-1-2-02-01-02 | B72: Otros bienes transportables (excepto productos metálicos, maquinaria y equipo | C72: 102712026 | D72: ,00 | E72: 94632052 | F72: 0.9213337102 | G72: 6023771 | H72: 22339987 | I72: 0.2175011814
A73: 3-1-2-02-01-02-0002 | B73: Pasta o pulpa, papel y productos de papel; impresos y artículos relacionados | C73: 25328000 | D73: ,00 | E73: 23328000 | F73: 0.9210360076 | G73: 5000000 | H73: 8999344 | I73: 0.3553120657
A74: 3-1-2-02-01-02-0003 | B74: =VLOOKUP($A74,DATO1,2,0) -> Productos de hornos de coque, de refinación de petróleo y combustible | C74: 10816000 | D74: ,00 | E74: 10816000 | F74: 1 | G74: 970221 | H74: 3239325 | I74: =IF(C74=" ,00"," ",+H74/C74) -> 0.2994938055
A75: 3-1-2-02-01-02-0006 | B75: Productos de caucho y plástico | C75: 54733026 | D75: ,00 | E75: 48653052 | F75: =+E75/C75 -> 0.8889158074 | G75: ,00 | H75: 5873781 | I75: 0.1073169424
A76: 3-1-2-02-01-02-0008 | B76: Muebles; otros bienes transportables n.c.p. | C76: 11835000 | D76: ,00 | E76: 11835000 | F76: 1 | G76: 53550 | H76: 4227537 | I76: 0.3572063371
A77: 3-1-2-02-01-03 | B77: Productos metálicos | C77: 49669346 | D77: ,00 | E77: 47669346 | F77: 0.9597337158 | G77: 6519758 | H77: 17360236 | I77: 0.3495160979
A78: 3-1-2-02-01-03-0002 | B78: Productos metálicos elaborados (excepto maquinaria y equipo) | C78: 4777000 | D78: ,00 | E78: 3777000 | F78: 0.7906635964 | G78: 1925063 | H78: 1925063 | I78: 0.4029857651
A79: 3-1-2-02-01-03-0003 | B79: Maquinaria para uso general | C79: 1000000 | D79: ,00 | E79: ,00 | F79: =+E79/C79 -> 0 | G79: ,00 | H79: ,00 | I79: =IF(C79=" ,00"," ",+H79/C79) -> 0
A80: 3-1-2-02-01-03-0005 | B80: Maquinaria de oficina, contabilidad e informática | C80: 36340974 | D80: ,00 | E80: 36340974 | F80: 1 | G80: 4416195 | H80: 12194442 | I80: 0.3355562787
A81: 3-1-2-02-01-03-0006 | B81: Maquinaria y aparatos eléctricos | C81: 7551372 | D81: ,00 | E81: 7551372 | F81: 1 | G81: 178500 | H81: 3240731 | I81: 0.4291579067
A82: 3-1-2-02-02 | B82: Adquisición de servicios | C82: 3589164628 | D82: 18997807 | E82: 3038869576 | F82: 0.8466787932 | G82: 221170539 | H82: 1849207943 | I82: 0.5152195942
A83: 3-1-2-02-02-01 | B83: Servicios de venta y de distribución; alojamiento; servicios de suministro de comidas y bebidas; servicios de transporte; y servicios de distribución de electricidad, gas y agua | C83: 634154527 | D83: ,00 | E83: 545766037 | F83: =+E83/C83 -> 0.8606199495 | G83: 45837552 | H83: 280334625 | I83: =IF(C83=" ,00"," ",+H83/C83) -> 0.4420604333
A84: 3-1-2-02-02-01-0002 | B84: Servicios de transporte de pasajeros | C84: 1500000 | D84: ,00 | E84: ,00 | F84: =+E84/C84 -> 0 | G84: ,00 | H84: ,00 | I84: =IF(C84=" ,00"," ",+H84/C84) -> 0
A85: 3-1-2-02-02-01-0004 | B85: Servicios de alquiler de vehículos de transporte con operario | C85: 440849527 | D85: ,00 | E85: 373917339 | F85: =+E85/C85 -> 0.8481745269 | G85: 32844050 | H85: 199819493 | I85: =IF(C85=" ,00"," ",+H85/C85) -> 0.4532600825
A86: 3-1-2-02-02-01-0006 | B86: Servicios postales y de mensajería | C86: 191805000 | D86: ,00 | E86: 171848698 | F86: =+E86/C86 -> 0.8959552566 | G86: 12993502 | H86: 80515132 | I86: =IF(C86=" ,00"," ",+H86/C86) -> 0.4197759808
A87: 3-1-2-02-02-01-0006-001 | B87: Servicios de mensajería | C87: 191805000 | D87: ,00 | E87: 171848698 | F87: =+E87/C87 -> 0.8959552566 | G87: 12993502 | H87: 80515132 | I87: =IF(C87=" ,00"," ",+H87/C87) -> 0.4197759808
A88: 3-1-2-02-02-02 | B88: Servicios financieros y servicios conexos, servicios inmobiliarios y servicios de leasing | C88: 895545496 | D88: 216611 | E88: 757776302 | F88: 0.846161703 | G88: 31190225 | H88: 446984277 | I88: 0.4991195634
A89: 3-1-2-02-02-02-0001 | B89: Servicios financieros y servicios conexos | C89: 124146000 | D89: 216611 | E89: 101936178 | F89: 0.8210991736 | G89: 216611 | H89: 101103585 | I89: 0.8143926103
A90: 3-1-2-02-02-02-0001-007 | B90: Servicios de seguros de vehículos automotores | C90: 6959000 | D90: ,00 | E90: 5802040 | F90: 0.8337462279 | G90: ,00 | H90: 5802040 | I90: 0.8337462279
A91: 3-1-2-02-02-02-0001-009 | B91: Servicios de seguros generales de responsabilidad civil | C91: 88506000 | D91: ,00 | E91: 73791541 | F91: 0.833746198 | G91: ,00 | H91: 73791541 | I91: 0.833746198
A92: 3-1-2-02-02-02-0001-010 | B92: Servicios de seguro obligatorio de accidentes de tránsito (SOAT) | C92: 673000 | D92: ,00 | E92: 673000 | F92: 1 | G92: ,00 | H92: 673000 | I92: 1
A93: 3-1-2-02-02-02-0001-011 | B93: Servicios de administración de fondos de pensiones y cesantías | C93: 3175000 | D93: 216611 | E93: 1645517 | F93: 0.5182730709 | G93: 216611 | H93: 1645517 | I93: 0.5182730709
A94: 3-1-2-02-02-02-0001-012 | B94: Otros servicios de seguros distintos de los seguros de vida n.c.p. | C94: 24833000 | D94: ,00 | E94: 20024080 | F94: 0.8063496154 | G94: ,00 | H94: 19191487 | I94: 0.7728219305
A95: 3-1-2-02-02-02-0002 | B95: Servicios inmobiliarios | C95: 589611992 | D95: ,00 | E95: 589426502 | F95: 0.9996854033 | G95: 30973614 | H95: 308941188 | I95: 0.5239737186
A96: 3-1-2-02-02-02-0002-001 | B96: Servicios de alquiler o arrendamiento con o sin opción de compra relativos a bienes inmuebles no residenciales propios o arrendados | C96: 589611992 | D96: ,00 | E96: 589426502 | F96: 0.9996854033 | G96: 30973614 | H96: 308941188 | I96: 0.5239737186
A97: 3-1-2-02-02-02-0003 | B97: Servicios de arrendamiento o alquiler sin operario | C97: 181787504 | D97: ,00 | E97: 66413622 | F97: 0.3653365635 | G97: ,00 | H97: 36939504 | I97: 0.2032015578
A98: 3-1-2-02-02-02-0003-001 | B98: =VLOOKUP($A98,DATO1,2,0) -> Servicios de arrendamiento o alquiler de automóviles y furgonetas sin operario | C98: ,00 | D98: ,00 | E98: ,00 | F98: 0 | G98: ,00 | H98: ,00 | I98: 0
A99: 3-1-2-02-02-02-0003-005 | B99: =VLOOKUP($A99,DATO1,2,0) -> Derechos de uso de productos de propiedad intelectual y otros productos similares | C99: 181787504 | D99: ,00 | E99: 66413622 | F99: 0 | G99: ,00 | H99: 36939504 | I99: 0
A100: 3-1-2-02-02-03 | B100: Servicios prestados a las empresas y servicios de producción | C100: 1715539846 | D100: 6244098 | E100: 1445168050 | F100: 0.8423984167 | G100: 98765083 | H100: 960621269 | I100: 0.5599527585
A101: 3-1-2-02-02-03-0002 | B101: Servicios jurídicos y contables | C101: 4600000 | D101: ,00 | E101: 1979208 | F101: 0.4302626087 | G101: 659736 | H101: 1979208 | I101: 0.4302626087
A102: 3-1-2-02-02-03-0002-001 | B102: Servicios de documentación y certificación jurídica | C102: 4600000 | D102: ,00 | E102: 1979208 | F102: 0.4302626087 | G102: 659736 | H102: 1979208 | I102: 0.4302626087
A103: 3-1-2-02-02-03-0003 | B103: Otros servicios profesionales, científicos y técnicos | C103: 250000000 | D103: ,00 | E103: 120254395 | F103: 0.48101758 | G103: 18345000 | H103: 60724048 | I103: 0.242896192
A104: 3-1-2-02-02-03-0003-001 | B104: Servicios de consultoría en administración y servicios de gestión; servicios de tecnología de la información | C104: ,00 | D104: ,00 | E104: ,00 | F104: 0 | G104: ,00 | H104: ,00 | I104: 0
A105: 3-1-2-02-02-03-0003-004 | B105: Servicios de suministro de infraestructura de hosting y de tecnología de la información (TI) | C105: 10000000 | D105: ,00 | E105: 4351495 | F105: 0 | G105: ,00 | H105: 725248 | I105: 0
A106: 3-1-2-02-02-03-0003-013 | B106: Otros servicios profesionales y técnicos n.c.p. | C106: 240000000 | D106: ,00 | E106: 115902900 | F106: 0.48292875 | G106: 18345000 | H106: 59998800 | I106: 0.249995
A107: 3-1-2-02-02-03-0004 | B107: Servicios de telecomunicaciones, transmisión y suministro de información | C107: 221191000 | D107: 6244098 | E107: 154870135 | F107: 0.7001647219 | G107: 15085108 | H107: 105360029 | I107: 0.4763305424
A108: 3-1-2-02-02-03-0004-001 | B108: Servicios de telefonía fija | C108: 51000000 | D108: 3107070 | E108: 24827640 | F108: 0.4868164706 | G108: 3107070 | H108: 24827640 | I108: 0.4868164706
A109: 3-1-2-02-02-03-0004-002 | B109: Servicios de telecomunicaciones móviles | C109: 44100000 | D109: 3137028 | E109: 23950375 | F109: 0.5430924036 | G109: 3137028 | H109: 23950375 | I109: 0.5430924036
A110: 3-1-2-02-02-03-0004-004 | B110: Servicios de telecomunicaciones a través de internet | C110: 121091000 | D110: ,00 | E110: 106092120 | F110: 0.8761354684 | G110: 8841010 | H110: 56582014 | I110: 0.4672685336
A111: 3-1-2-02-02-03-0004-007 | B111: Servicios de transmisión de programas de radio y televisión | C111: 5000000 | D111: ,00 | E111: ,00 | F111: 0 | G111: ,00 | H111: ,00 | I111: 0
A112: 3-1-2-02-02-03-0005 | B112: Servicios de soporte | C112: 794248230 | D112: ,00 | E112: 733199016 | F112: 0.9231358514 | G112: 57966467 | H112: 391183607 | I112: 0.4925205902
A113: 3-1-2-02-02-03-0005-001 | B113: Servicios de protección (guardas de seguridad) | C113: 491796764 | D113: ,00 | E113: 458341200 | F113: 0.9319727854 | G113: 32596491 | H113: 201877734 | I113: 0.4104901634
A114: 3-1-2-02-02-03-0005-002 | B114: =VLOOKUP($A114,DATO1,2,0) -> Servicios de limpieza general | C114: 259411466 | D114: ,00 | E114: 235817816 | F114: 0.909049317 | G114: 25369976 | H114: 164046828 | I114: 0.6323807908
A115: 3-1-2-02-02-03-0005-003 | B115: Servicios de copia y reproducción | C115: 1000000 | D115: ,00 | E115: ,00 | F115: =+E115/C115 -> 0 | G115: ,00 | H115: ,00 | I115: =IF(C115=" ,00"," ",+H115/C115) -> 0
A116: 3-1-2-02-02-03-0005-004 | B116: Servicios de correo | C116: ,00 | D116: ,00 | E116: ,00 | F116: 0 | G116: ,00 | H116: ,00 | I116: 0
A117: 3-1-2-02-02-03-0005-006 | B117: Servicios de organización y asistencia de convenciones y ferias | C117: 42040000 | D117: ,00 | E117: 39040000 | F117: 0.9286393911 | G117: ,00 | H117: 25259045 | I117: 0.6008336108
A118: 3-1-2-02-02-03-0005-007 | B118: Otros servicios de apoyo y de información no clasificados previamente | C118: ,00 | D118: ,00 | E118: ,00 | F118: 0 | G118: ,00 | H118: ,00 | I118: 0
A119: 3-1-2-02-02-03-0006 | B119: Servicios de mantenimiento, reparación e instalación (excepto servicios de construcción) | C119: 445500616 | D119: ,00 | E119: 434865296 | F119: 0.9761272608 | G119: 6708772 | H119: 401374377 | I119: 0.9009513401
A120: 3-1-2-02-02-03-0006-003 | B120: Servicios de mantenimiento y reparación de computadores y equipo periférico | C120: 10000000 | D120: ,00 | E120: ,00 | F120: 0 | G120: ,00 | H120: ,00 | I120: 0
A121: 3-1-2-02-02-03-0006-005 | B121: Servicios de mantenimiento y reparación de otra maquinaria y otro equipo | C121: 21803000 | D121: ,00 | E121: 21167680 | F121: =+E121/C121 -> 0.9708608907 | G121: ,00 | H121: 10042443 | I121: =IF(C121=" ,00"," ",+H121/C121) -> 0.4605991377
A122: 3-1-2-02-02-03-0006-012 | B122: Servicios de reparación de otros bienes | C122: 413697616 | D122: ,00 | E122: 413697616 | F122: 1 | G122: 6708772 | H122: 391331934 | I122: 0.9459371262
A123: 3-1-2-02-02-03-0007 | B123: Otros servicios de fabricación; servicios de edición, impresión y reproducción; servicios de recuperación de materiales | C123: ,00 | D123: ,00 | E123: ,00 | F123: 0 | G123: ,00 | H123: ,00 | I123: 0
A124: 3-1-2-02-02-03-0007-002 | B124: Servicios de impresión | C124: ,00 | D124: ,00 | E124: ,00 | F124: 0 | G124: ,00 | H124: ,00 | I124: 0
A125: 3-1-2-02-02-04 | B125: Servicios administrativos del Gobierno | C125: 142000000 | D125: 12537098 | E125: 88234428 | F125: 0.6213692113 | G125: 12537098 | H125: 88234428 | I125: 0.6213692113
A126: 3-1-2-02-02-04-0001 | B126: Otros servicios públicos generales del Gobierno n.c.p. | C126: 142000000 | D126: 12537098 | E126: 88234428 | F126: 0.6213692113 | G126: 12537098 | H126: 88234428 | I126: 0.6213692113
A127: 3-1-2-02-02-04-0001-001 | B127: Energía | C127: 108000000 | D127: 8720240 | E127: 76633860 | F127: 0.7095727778 | G127: 8720240 | H127: 76633860 | I127: 0.7095727778
A128: 3-1-2-02-02-04-0001-002 | B128: Acueducto y alcantarillado | C128: 24000000 | D128: 2087198 | E128: 7677558 | F128: 0.31989825 | G128: 2087198 | H128: 7677558 | I128: 0.31989825
A129: 3-1-2-02-02-04-0001-003 | B129: Aseo | C129: 10000000 | D129: 1729660 | E129: 3923010 | F129: 0.392301 | G129: 1729660 | H129: 3923010 | I129: 0.392301
A130: 3-1-2-02-02-05 | B130: Viáticos y gastos de viaje | C130: ,00 | D130: ,00 | E130: ,00 | F130: 0 | G130: ,00 | H130: ,00 | I130: 0
A131: 3-1-2-02-02-06 | B131: Capacitación | C131: 39856000 | D131: ,00 | E131: 39856000 | F131: 1 | G131: ,00 | H131: ,00 | I131: 0
A132: 3-1-2-02-02-07 | B132: Bienestar e incentivos | C132: 104932039 | D132: ,00 | E132: 104932039 | F132: 1 | G132: 32840581 | H132: 47343617 | I132: 0.451183618
A133: 3-1-2-02-02-08 | B133: Salud Ocupacional | C133: 57136720 | D133: ,00 | E133: 57136720 | F133: 1 | G133: ,00 | H133: 25689727 | I133: 0.4496185115
A134: 3-3 | B134: INVERSIÓN | C134: 178938029000 | D134: 476523786 | E134: 90463696137 | F134: 0.5055588051 | G134: 5661824478 | H134: 54518850772 | I134: 0.3046800676
A135: 3-3-1 | B135: DIRECTA | C135: 178938029000 | D135: 476523786 | E135: 90463696137 | F135: 0.5055588051 | G135: 5661824478 | H135: 54518850772 | I135: 0.3046800676
A136: 3-3-1-15 | B136: Bogotá Mejor Para Todos | C136: 178938029000 | D136: 476523786 | E136: 90463696137 | F136: 0.5055588051 | G136: 5661824478 | H136: 54518850772 | I136: 0.3046800676
A137: 3-3-1-15-01 | B137: Pilar Igualdad de calidad de vida | C137: 44289528766 | D137: 60122444 | E137: 43627007949 | F137: 0.985041141 | G137: 4007829456 | H137: 29298422914 | I137: 0.6615203126
A138: 3-3-1-15-01-11 | B138: Mejores oportunidades para el desarrollo a través de la cultura, la recreación y el deporte | C138: 44289528766 | D138: 60122444 | E138: 43627007949 | F138: 0.985041141 | G138: 4007829456 | H138: 29298422914 | I138: 0.6615203126
A139: 3-3-1-15-01-11-0997 | B139: Fortalecimiento de los procesos y de agentes de formación del sector | C139: 644708933 | D139: ,00 | E139: 488708933 | F139: 0.758030342 | G139: 34784000 | H139: 192057500 | I139: 0.2978979973
A140: 3-3-1-15-01-11-0997-124 | B140: Formación para la transformación del ser | C140: 644708933 | D140: ,00 | E140: 488708933 | F140: 0.758030342 | G140: 34784000 | H140: 192057500 | I140: 0.2978979973
A141: 3-3-1-15-01-11-1008 | B141: Fomento y gestión para el desarrollo cultural | C141: 10149404000 | D141: 60122444 | E141: 9659530133 | F141: 0.9517337307 | G141: 3668596679 | H141: 5567851606 | I141: 0.5485890212
A142: 3-3-1-15-01-11-1008-126 | B142: Política de emprendimiento e industrias culturales y creativas | C142: 593508000 | D142: ,00 | E142: 593508000 | F142: 1 | G142: 54109000 | H142: 342386300 | I142: 0.576885737
A143: 3-3-1-15-01-11-1008-127 | B143: Programa de estímulos | C143: 9555896000 | D143: 60122444 | E143: 9066022133 | F143: 0.9487359566 | G143: 3614487679 | H143: 5225465306 | I143: 0.5468315379
A144: 3-3-1-15-01-11-1011 | B144: Lectura, escritura y redes de conocimiento | C144: 33495415833 | D144: ,00 | E144: 33478768883 | F144: 0.9995030081 | G144: 304448777 | H144: 23538513808 | I144: 0.7027383665
A145: 3-3-1-15-01-11-1011-125 | B145: Plan Distrital de lectura y escritura | C145: 33495415833 | D145: ,00 | E145: 33478768883 | F145: 0.9995030081 | G145: 304448777 | H145: 23538513808 | I145: 0.7027383665
A146: 3-3-1-15-02 | B146: Pilar Democracia urbana | C146: 122147812207 | D146: 353473966 | E146: 36611014000 | F146: 0.2997271366 | G146: 776349871 | H146: 18912894564 | I146: 0.1548361303
A147: 3-3-1-15-02-17 | B147: Espacio público, derecho de todos | C147: 122147812207 | D147: 353473966 | E147: 36611014000 | F147: 0.2997271366 | G147: 776349871 | H147: 18912894564 | I147: 0.1548361303
A148: 3-3-1-15-02-17-0992 | B148: =VLOOKUP($A148,DATO1,2,0) -> Patrimonio e Infraestructura cultural fortalecida | C148: 122147812207 | D148: 353473966 | E148: 36611014000 | F148: 0.2997271366 | G148: 776349871 | H148: 18912894564 | I148: =IF(C148=" ,00"," ",+H148/C148) -> 0.1548361303
A149: 3-3-1-15-02-17-0992-139 | B149: Gestión de infraestructura cultural y deportiva nueva, rehabilitada y recuperada | C149: 122147812207 | D149: 353473966 | E149: 36611014000 | F149: =+E149/C149 -> 0.2997271366 | G149: 776349871 | H149: 18912894564 | I149: 0.1548361303
A150: 3-3-1-15-03 | B150: Pilar Construcción de comunidad y cultura ciudadana | C150: 5493259835 | D150: 57000000 | E150: 3331875079 | F150: 0.6065387728 | G150: 480690500 | H150: 1807807932 | I150: 0.3290956529
A151: 3-3-1-15-03-25 | B151: Cambio cultural y construcción del tejido social para la vida | C151: 5493259835 | D151: 57000000 | E151: 3331875079 | F151: 0.6065387728 | G151: 480690500 | H151: 1807807932 | I151: 0.3290956529
A152: 3-3-1-15-03-25-0987 | B152: Saberes sociales para la cultura ciudadana y la transformación cultural | C152: 3085166834 | D152: 27000000 | E152: 2005387267 | F152: 0.6500093431 | G152: 333608000 | H152: 972712667 | I152: 0.3152868935
A153: 3-3-1-15-03-25-0987-156 | B153: Cultura ciudadana para la convivencia | C153: 3085166834 | D153: 27000000 | E153: 2005387267 | F153: 0.6500093431 | G153: 333608000 | H153: 972712667 | I153: 0.3152868935
A154: 3-3-1-15-03-25-1016 | B154: Poblaciones diversas e interculturales | C154: 749000000 | D154: ,00 | E154: 585030877 | F154: 0.7810826128 | G154: 99427500 | H154: 385394264 | I154: 0.5145450788
A155: 3-3-1-15-03-25-1016-157 | B155: Intervención integral en territorios y poblaciones priorizadas a través de cultura, recreación y deporte | C155: 749000000 | D155: ,00 | E155: 585030877 | F155: 0.7810826128 | G155: 99427500 | H155: 385394264 | I155: 0.5145450788
A156: 3-3-1-15-03-25-1137 | B156: Comunidades culturales para la paz | C156: 1659093001 | D156: 30000000 | E156: 741456935 | F156: 0.4469049864 | G156: 47655000 | H156: 449701001 | I156: 0.2710523164
A157: 3-3-1-15-03-25-1137-157 | B157: Intervención integral en territorios y poblaciones priorizadas a través de cultura, recreación y deporte | C157: 1659093001 | D157: 30000000 | E157: 741456935 | F157: 0.4469049864 | G157: 47655000 | H157: 449701001 | I157: 0.2710523164
A158: 3-3-1-15-07 | B158: Eje transversal Gobierno legítimo, fortalecimiento local y eficiencia | C158: 7007428192 | D158: 5927376 | E158: 6893799109 | F158: 0.9837844813 | G158: 396954651 | H158: 4499725362 | I158: 0.6421364927
A159: 3-3-1-15-07-42 | B159: Transparencia, gestión pública y servicio a la ciudadanía | C159: 2178059733 | D159: ,00 | E159: 2155009436 | F159: 0.9894170501 | G159: 203673631 | H159: 895522260 | I159: 0.411155969
A160: 3-3-1-15-07-42-1009 | B160: Transparencia y gestión pública para todos | C160: 2178059733 | D160: ,00 | E160: 2155009436 | F160: 0.9894170501 | G160: 203673631 | H160: 895522260 | I160: 0.411155969
A161: 3-3-1-15-07-42-1009-185 | B161: Fortalecimiento a la gestión pública efectiva y eficiente | C161: 2178059733 | D161: ,00 | E161: 2155009436 | F161: 0.9894170501 | G161: 203673631 | H161: 895522260 | I161: 0.411155969
A162: 3-3-1-15-07-43 | B162: Modernización institucional | C162: 1435328959 | D162: 5927376 | E162: 1411426440 | F162: 0.9833470099 | G162: 135021020 | H162: 716347811 | I162: 0.4990826713
A163: 3-3-1-15-07-43-1012 | B163: =Plano!B164 -> Fortalecimiento a la Gestión | C163: 1435328959 | D163: 5927376 | E163: 1411426440 | F163: 0.9833470099 | G163: 135021020 | H163: 716347811 | I163: 0.4990826713
A164: 3-3-1-15-07-43-1012-189 | B164: =Plano!B165 -> Modernización administrativa | C164: 1435328959 | D164: 5927376 | E164: 1411426440 | F164: 0.9833470099 | G164: 135021020 | H164: 716347811 | I164: 0.4990826713
A165: 3-3-1-15-07-44 | B165: =Plano!B166 -> Gobierno y ciudadanía digital | C165: 581219500 | D165: ,00 | E165: 514543233 | F165: 0.8852821232 | G165: 46851000 | H165: 264922333 | I165: 0.4558042753
A166: 3-3-1-15-07-44-1007 | B166: =Plano!B167 -> Información y ciudadanía digital para todos | C166: 581219500 | D166: ,00 | E166: 514543233 | F166: 0.8852821232 | G166: 46851000 | H166: 264922333 | I166: 0.4558042753
A167: 3-3-1-15-07-44-1007-192 | B167: =Plano!B168 -> Fortalecimiento institucional a través del uso de TIC | C167: 581219500 | D167: ,00 | E167: 514543233 | F167: 0.8852821232 | G167: 46851000 | H167: 264922333 | I167: 0.4558042753
A168: 3-3-1-15-07-45 | B168: =Plano!B169 -> Gobernanza e influencia local, regional e internacional | C168: 2812820000 | D168: ,00 | E168: 2812820000 | F168: 1 | G168: 11409000 | H168: 2622932958 | I168: 0.9324922882
A169: 3-3-1-15-07-45-1018 | B169: =Plano!B170 -> Participación para la democracia cultural, recreativa y deportiva | C169: 2812820000 | D169: ,00 | E169: 2812820000 | F169: 1 | G169: 11409000 | H169: 2622932958 | I169: 0.9324922882
A170: 3-3-1-15-07-45-1018-196 | B170: =Plano!B171 -> Fortalecimiento local, gobernabilidad, gobernanza y participación ciudadana | C170: 2812820000 | D170: ,00 | E170: 2812820000 | F170: 1 | G170: 11409000 | H170: 2622932958 | I170: 0.9324922882

Sheet Plano
A1: SISTEMA DE PRESUPUESTO DISTRITAL
A2: EJECUCION DE GASTOS
A3: COMPANIA 119
A4: UNIDAD_EJECUTORA 01
A5: VIGENCIA 2019
A6: MES 8
A7: 3 | B7: GASTOS | C7: 198543492000 | D7: 376404000 | E7: 3226404000 | F7: 201769896000 | G7: ,00 | H7: 201769896000 | I7: 1619306597 | J7: 104353820692 | K7: 51,72 | L7: 7041727096 | M7: 67045138542 | N7: 33,23
A8: 3-1 | B8: GASTOS DE FUNCIONAMIENTO | C8: 22831867000 | D8: ,00 | E8: ,00 | F8: 22831867000 | G8: ,00 | H8: 22831867000 | I8: 1142782811 | J8: 13890124555 | K8: 60,84 | L8: 1379902618 | M8: 12526287770 | N8: 54,86
A9: 3-1-1 | B9: Gastos de personal | C9: 19088692000 | D9: ,00 | E9: ,00 | F9: 19088692000 | G9: ,00 | H9: 19088692000 | I9: 1123785004 | J9: 10707824581 | K9: 56,10 | L9: 1145528130 | M9: 10636695979 | N9: 55,72
A10: 3-1-1-01 | B10: Planta de personal permanente | C10: 9895130000 | D10: ,00 | E10: 9193562000 | F10: 19088692000 | G10: ,00 | H10: 19088692000 | I10: 1123785004 | J10: 10707824581 | K10: 56,10 | L10: 1145528130 | M10: 10636695979 | N10: 55,72
A11: 3-1-1-01-01 | B11: Factores constitutivos de salario | C11: 6576374000 | D11: ,00 | E11: 7433272739 | F11: 14009646739 | G11: ,00 | H11: 14009646739 | I11: 821672863 | J11: 8463326154 | K11: 60,41 | L11: 839770406 | M11: 8392197552 | N11: 59,90
A12: 3-1-1-01-01-01 | B12: Factores salariales comunes | C12: 2688090000 | D12: ,00 | E12: 7283427739 | F12: 9971517739 | G12: ,00 | H12: 9971517739 | I12: 632869187 | J12: 5806207822 | K12: 58,23 | L12: 646489839 | M12: 5735079220 | N12: 57,51
A13: 3-1-1-01-01-01-0001 | B13: Sueldo básico | C13: ,00 | D13: ,00 | E13: 7290228403 | F13: 7290228403 | G13: ,00 | H13: 7290228403 | I13: 537845470 | J13: 4792763525 | K13: 65,74 | L13: 548420092 | M13: 4721634923 | N13: 64,77
A14: 3-1-1-01-01-01-0004 | B14: Gastos de representación | C14: 771188000 | D14: ,00 | E14: ,00 | F14: 771188000 | G14: ,00 | H14: 771188000 | I14: 51383051 | J14: 452119170 | K14: 58,63 | L14: 51383051 | M14: 452119170 | N14: 58,63
A15: 3-1-1-01-01-01-0005 | B15: Horas Extras, Dominicales, Festivos, Recargo Nocturno y Trabajo Suplementario | C15: 83247000 | D15: ,00 | E15: -18800664 | F15: 64446336 | G15: ,00 | H15: 64446336 | I15: 1210948 | J15: 10615524 | K15: 16,47 | L15: 1210948 | M15: 10615524 | N15: 16,47
A16: 3-1-1-01-01-01-0006 | B16: Auxilio de transporte | C16: 1106000 | D16: ,00 | E16: ,00 | F16: 1106000 | G16: ,00 | H16: 1106000 | I16: 97032 | J16: 776256 | K16: 70,19 | L16: 97032 | M16: 776256 | N16: 70,19
A17: 3-1-1-01-01-01-0007 | B17: Subsidio de alimentación | C17: 755000 | D17: ,00 | E17: 12000000 | F17: 12755000 | G17: ,00 | H17: 12755000 | I17: 690108 | J17: 6613680 | K17: 51,85 | L17: 690108 | M17: 6613680 | N17: 51,85
A18: 3-1-1-01-01-01-0008 | B18: Bonificación por servicios prestados | C18: 240907000 | D18: ,00 | E18: ,00 | F18: 240907000 | G18: ,00 | H18: 240907000 | I18: 18300434 | J18: 184632433 | K18: 76,64 | L18: 18300434 | M18: 184632433 | N18: 76,64
A19: 3-1-1-01-01-01-0010 | B19: Prima de navidad | C19: 1074930000 | D19: ,00 | E19: ,00 | F19: 1074930000 | G19: ,00 | H19: 1074930000 | I19: 5467227 | J19: 17764787 | K19: 1,65 | L19: 7870240 | M19: 17764787 | N19: 1,65
A20: 3-1-1-01-01-01-0011 | B20: Prima de vacaciones | C20: 515957000 | D20: ,00 | E20: ,00 | F20: 515957000 | G20: ,00 | H20: 515957000 | I20: 17874917 | J20: 340922447 | K20: 66,08 | L20: 18517934 | M20: 340922447 | N20: 66,08
A21: 3-1-1-01-01-02 | B21: Factores salariales especiales | C21: 3888284000 | D21: ,00 | E21: 149845000 | F21: 4038129000 | G21: ,00 | H21: 4038129000 | I21: 188803676 | J21: 2657118332 | K21: 65,80 | L21: 193280567 | M21: 2657118332 | N21: 65,80
A22: 3-1-1-01-01-02-0001 | B22: Prima de antigüedad | C22: ,00 | D22: ,00 | E22: 149845000 | F22: 149845000 | G22: ,00 | H22: 149845000 | I22: 11310344 | J22: 102550351 | K22: 68,44 | L22: 11310344 | M22: 102550351 | N22: 68,44
A23: 3-1-1-01-01-02-0002 | B23: Prima Técnica | C23: 2699255000 | D23: ,00 | E23: ,00 | F23: 2699255000 | G23: ,00 | H23: 2699255000 | I23: 177493332 | J23: 1501447910 | K23: 55,62 | L23: 177493332 | M23: 1501447910 | N23: 55,62
A24: 3-1-1-01-01-02-0003 | B24: Prima Semestral | C24: 1189029000 | D24: ,00 | E24: ,00 | F24: 1189029000 | G24: ,00 | H24: 1189029000 | I24: ,00 | J24: 1053120071 | K24: 88,57 | L24: 4476891 | M24: 1053120071 | N24: 88,57
A25: 3-1-1-01-02 | B25: Contribuciones inherentes a la nómina | C25: 3126951000 | D25: ,00 | E25: 1732695000 | F25: 4859646000 | G25: ,00 | H25: 4859646000 | I25: 294039851 | J25: 2079368037 | K25: 42,79 | L25: 296644975 | M25: 2079368037 | N25: 42,79
A26: 3-1-1-01-02-01 | B26: Aportes a la seguridad social en pensiones | C26: 772380000 | D26: ,00 | E26: 580662000 | F26: 1353042000 | G26: ,00 | H26: 1353042000 | I26: 105269988 | J26: 736508394 | K26: 54,43 | L26: 105269988 | M26: 736508394 | N26: 54,43
A27: 3-1-1-01-02-01-0001 | B27: Aportes a la seguridad social en pensiones públicas | C27: ,00 | D27: ,00 | E27: 580662000 | F27: 580662000 | G27: ,00 | H27: 580662000 | I27: 59360473 | J27: 406865522 | K27: 70,07 | L27: 59360473 | M27: 406865522 | N27: 70,07
A28: 3-1-1-01-02-01-0002 | B28: Aportes a la seguridad social en pensiones privadas | C28: 772380000 | D28: ,00 | E28: ,00 | F28: 772380000 | G28: ,00 | H28: 772380000 | I28: 45909515 | J28: 329642872 | K28: 42,68 | L28: 45909515 | M28: 329642872 | N28: 42,68
A29: 3-1-1-01-02-02 | B29: Aportes a la seguridad social en salud | C29: 958433000 | D29: ,00 | E29: ,00 | F29: 958433000 | G29: ,00 | H29: 958433000 | I29: 74341888 | J29: 520773994 | K29: 54,34 | L29: 74341888 | M29: 520773994 | N29: 54,34
A30: 3-1-1-01-02-02-0002 | B30: Aportes a la seguridad social en salud privada | C30: 958433000 | D30: ,00 | E30: ,00 | F30: 958433000 | G30: ,00 | H30: 958433000 | I30: 74341888 | J30: 520773994 | K30: 54,34 | L30: 74341888 | M30: 520773994 | N30: 54,34
A31: 3-1-1-01-02-03 | B31: Aportes de cesantías | C31: 693336000 | D31: ,00 | E31: 612791000 | F31: 1306127000 | G31: ,00 | H31: 1306127000 | I31: 16756775 | J31: 99466849 | K31: 7,62 | L31: 19361899 | M31: 99466849 | N31: 7,62
A32: 3-1-1-01-02-03-0001 | B32: Aportes de cesantías a fondos públicos | C32: ,00 | D32: ,00 | E32: 612791000 | F32: 612791000 | G32: ,00 | H32: 612791000 | I32: 13778124 | J32: 90738480 | K32: 14,81 | L32: 16383248 | M32: 90738480 | N32: 14,81
A33: 3-1-1-01-02-03-0002 | B33: Aportes de cesantías a fondos privados | C33: 693336000 | D33: ,00 | E33: ,00 | F33: 693336000 | G33: ,00 | H33: 693336000 | I33: 2978651 | J33: 8728369 | K33: 1,26 | L33: 2978651 | M33: 8728369 | N33: 1,26
A34: 3-1-1-01-02-04 | B34: Aportes a cajas de compensación familiar | C34: ,00 | D34: ,00 | E34: 519242000 | F34: 519242000 | G34: ,00 | H34: 519242000 | I34: 40499500 | J34: 301799300 | K34: 58,12 | L34: 40499500 | M34: 301799300 | N34: 58,12
A35: 3-1-1-01-02-04-0001 | B35: Compensar | C35: ,00 | D35: ,00 | E35: 519242000 | F35: 519242000 | G35: ,00 | H35: 519242000 | I35: 40499500 | J35: 301799300 | K35: 58,12 | L35: 40499500 | M35: 301799300 | N35: 58,12
A36: 3-1-1-01-02-05 | B36: Aportes generales al sistema de riesgos laborales | C36: 58864000 | D36: ,00 | E36: 20000000 | F36: 78864000 | G36: ,00 | H36: 78864000 | I36: 6521200 | J36: 43376600 | K36: 55,00 | L36: 6521200 | M36: 43376600 | N36: 55,00
A37: 3-1-1-01-02-05-0002 | B37: Aportes generales al sistema de riesgos laborales privados | C37: 58864000 | D37: ,00 | E37: 20000000 | F37: 78864000 | G37: ,00 | H37: 78864000 | I37: 6521200 | J37: 43376600 | K37: 55,00 | L37: 6521200 | M37: 43376600 | N37: 55,00
A38: 3-1-1-01-02-06 | B38: Aportes al ICBF | C38: 389438000 | D38: ,00 | E38: ,00 | F38: 389438000 | G38: ,00 | H38: 389438000 | I38: 30376700 | J38: 226365300 | K38: 58,13 | L38: 30376700 | M38: 226365300 | N38: 58,13
A39: 3-1-1-01-02-06-0001 | B39: Aportes al ICBF de funcionarios | C39: 389438000 | D39: ,00 | E39: ,00 | F39: 389438000 | G39: ,00 | H39: 389438000 | I39: 30376700 | J39: 226365300 | K39: 58,13 | L39: 30376700 | M39: 226365300 | N39: 58,13
A40: 3-1-1-01-02-07 | B40: Aportes al SENA | C40: 64922000 | D40: ,00 | E40: ,00 | F40: 64922000 | G40: ,00 | H40: 64922000 | I40: 5071000 | J40: 37786000 | K40: 58,20 | L40: 5071000 | M40: 37786000 | N40: 58,20
A41: 3-1-1-01-02-07-0001 | B41: Aportes al SENA de funcionarios | C41: 64922000 | D41: ,00 | E41: ,00 | F41: 64922000 | G41: ,00 | H41: 64922000 | I41: 5071000 | J41: 37786000 | K41: 58,20 | L41: 5071000 | M41: 37786000 | N41: 58,20
A42: 3-1-1-01-02-08 | B42: Aportes a la ESAP | C42: 64922000 | D42: ,00 | E42: ,00 | F42: 64922000 | G42: ,00 | H42: 64922000 | I42: 5071000 | J42: 37786000 | K42: 58,20 | L42: 5071000 | M42: 37786000 | N42: 58,20
A43: 3-1-1-01-02-08-0001 | B43: Aportes a la ESAP de funcionarios | C43: 64922000 | D43: ,00 | E43: ,00 | F43: 64922000 | G43: ,00 | H43: 64922000 | I43: 5071000 | J43: 37786000 | K43: 58,20 | L43: 5071000 | M43: 37786000 | N43: 58,20
A44: 3-1-1-01-02-09 | B44: Aportes a escuelas industriales e institutos técnicos | C44: 124656000 | D44: ,00 | E44: ,00 | F44: 124656000 | G44: ,00 | H44: 124656000 | I44: 10131800 | J44: 75505600 | K44: 60,57 | L44: 10131800 | M44: 75505600 | N44: 60,57
A45: 3-1-1-01-02-09-0001 | B45: Aportes a escuelas industriales e institutos técnicos de funcionarios | C45: 124656000 | D45: ,00 | E45: ,00 | F45: 124656000 | G45: ,00 | H45: 124656000 | I45: 10131800 | J45: 75505600 | K45: 60,57 | L45: 10131800 | M45: 75505600 | N45: 60,57
A46: 3-1-1-01-03 | B46: Remuneraciones no constitutivas de factor salarial | C46: 191805000 | D46: ,00 | E46: 27594261 | F46: 219399261 | G46: ,00 | H46: 219399261 | I46: 8072290 | J46: 165130390 | K46: 75,26 | L46: 9112749 | M46: 165130390 | N46: 75,26
A47: 3-1-1-01-03-01 | B47: Indemnización por vacaciones | C47: ,00 | D47: ,00 | E47: 27594261 | F47: 27594261 | G47: ,00 | H47: 27594261 | I47: 3002891 | J47: 24610179 | K47: 89,19 | L47: 3988851 | M47: 24610179 | N47: 89,19
A48: 3-1-1-01-03-02 | B48: Bonificación por recreación | C48: 40758000 | D48: ,00 | E48: ,00 | F48: 40758000 | G48: ,00 | H48: 40758000 | I48: 1388709 | J48: 26816230 | K48: 65,79 | L48: 1443208 | M48: 26816230 | N48: 65,79
A49: 3-1-1-01-03-05 | B49: Reconocimiento por permanencia en el servicio público - Bogotá D.C. | C49: 92359000 | D49: ,00 | E49: ,00 | F49: 92359000 | G49: ,00 | H49: 92359000 | I49: ,00 | J49: 75803978 | K49: 82,08 | L49: ,00 | M49: 75803978 | N49: 82,08
A50: 3-1-1-01-03-07 | B50: Reconocimiento por Coordinación | C50: 58688000 | D50: ,00 | E50: ,00 | F50: 58688000 | G50: ,00 | H50: 58688000 | I50: 3680690 | J50: 37900003 | K50: 64,58 | L50: 3680690 | M50: 37900003 | N50: 64,58
A51: 3-1-1-02 | B51: Personal supernumerario y temporal | C51: 9193562000 | D51: ,00 | E51: -9193562000 | F51: ,00 | G51: ,00 | H51: ,00 | I51: ,00 | J51: ,00 | K51: ,00 | L51: ,00 | M51: ,00 | N51: ,00
A52: 3-1-1-02-01 | B52: Factores constitutivos de salario | C52: 7480867000 | D52: ,00 | E52: -7480867000 | F52: ,00 | G52: ,00 | H52: ,00 | I52: ,00 | J52: ,00 | K52: ,00 | L52: ,00 | M52: ,00 | N52: ,00
A53: 3-1-1-02-01-01 | B53: Factores salariales comunes | C53: 7331022000 | D53: ,00 | E53: -7331022000 | F53: ,00 | G53: ,00 | H53: ,00 | I53: ,00 | J53: ,00 | K53: ,00 | L53: ,00 | M53: ,00 | N53: ,00
A54: 3-1-1-02-01-01-0001 | B54: Sueldo básico | C54: 7331022000 | D54: ,00 | E54: -7331022000 | F54: ,00 | G54: ,00 | H54: ,00 | I54: ,00 | J54: ,00 | K54: ,00 | L54: ,00 | M54: ,00 | N54: ,00
A55: 3-1-1-02-01-02 | B55: Factores salariales especiales | C55: 149845000 | D55: ,00 | E55: -149845000 | F55: ,00 | G55: ,00 | H55: ,00 | I55: ,00 | J55: ,00 | K55: ,00 | L55: ,00 | M55: ,00 | N55: ,00
A56: 3-1-1-02-01-02-0001 | B56: Prima de antigüedad | C56: 149845000 | D56: ,00 | E56: -149845000 | F56: ,00 | G56: ,00 | H56: ,00 | I56: ,00 | J56: ,00 | K56: ,00 | L56: ,00 | M56: ,00 | N56: ,00
A57: 3-1-1-02-02 | B57: Contribuciones inherentes a la nómina | C57: 1712695000 | D57: ,00 | E57: -1712695000 | F57: ,00 | G57: ,00 | H57: ,00 | I57: ,00 | J57: ,00 | K57: ,00 | L57: ,00 | M57: ,00 | N57: ,00
A58: 3-1-1-02-02-01 | B58: Aportes a la seguridad social en pensiones | C58: 580662000 | D58: ,00 | E58: -580662000 | F58: ,00 | G58: ,00 | H58: ,00 | I58: ,00 | J58: ,00 | K58: ,00 | L58: ,00 | M58: ,00 | N58: ,00
A59: 3-1-1-02-02-01-0001 | B59: Aportes a la seguridad social en pensiones públicas | C59: 580662000 | D59: ,00 | E59: -580662000 | F59: ,00 | G59: ,00 | H59: ,00 | I59: ,00 | J59: ,00 | K59: ,00 | L59: ,00 | M59: ,00 | N59: ,00
A60: 3-1-1-02-02-03 | B60: Aportes de cesantías | C60: 612791000 | D60: ,00 | E60: -612791000 | F60: ,00 | G60: ,00 | H60: ,00 | I60: ,00 | J60: ,00 | K60: ,00 | L60: ,00 | M60: ,00 | N60: ,00
A61: 3-1-1-02-02-03-0001 | B61: Aportes de cesantías a fondos públicos | C61: 612791000 | D61: ,00 | E61: -612791000 | F61: ,00 | G61: ,00 | H61: ,00 | I61: ,00 | J61: ,00 | K61: ,00 | L61: ,00 | M61: ,00 | N61: ,00
A62: 3-1-1-02-02-04 | B62: Aportes a cajas de compensación familiar | C62: 519242000 | D62: ,00 | E62: -519242000 | F62: ,00 | G62: ,00 | H62: ,00 | I62: ,00 | J62: ,00 | K62: ,00 | L62: ,00 | M62: ,00 | N62: ,00
A63: 3-1-1-02-02-04-0001 | B63: Compensar | C63: 519242000 | D63: ,00 | E63: -519242000 | F63: ,00 | G63: ,00 | H63: ,00 | I63: ,00 | J63: ,00 | K63: ,00 | L63: ,00 | M63: ,00 | N63: ,00
A64: 3-1-2 | B64: Adquisición de bienes y servicios | C64: 3743175000 | D64: ,00 | E64: -500000 | F64: 3742675000 | G64: ,00 | H64: 3742675000 | I64: 18997807 | J64: 3182299974 | K64: 85,03 | L64: 234374488 | M64: 1889591791 | N64: 50,49
A65: 3-1-2-02 | B65: Adquisiciones diferentes de activos no financieros | C65: 3743175000 | D65: ,00 | E65: -500000 | F65: 3742675000 | G65: ,00 | H65: 3742675000 | I65: 18997807 | J65: 3182299974 | K65: 85,03 | L65: 234374488 | M65: 1889591791 | N65: 50,49
A66: 3-1-2-02-01 | B66: Materiales y suministros | C66: 151010000 | D66: ,00 | E66: 2500372 | F66: 153510372 | G66: ,00 | H66: 153510372 | I66: ,00 | J66: 143430398 | K66: 93,43 | L66: 13203949 | M66: 40383848 | N66: 26,31
A67: 3-1-2-02-01-01 | B67: Productos alimenticios, bebidas y tabaco; textiles, prendas de vestir y productos de cuero | C67: 1729000 | D67: ,00 | E67: -600000 | F67: 1129000 | G67: ,00 | H67: 1129000 | I67: ,00 | J67: 1129000 | K67: 100,00 | L67: 660420 | M67: 683625 | N67: 60,55
A68: 3-1-2-02-01-01-0005 | B68: Artículos textiles (excepto prendas de vestir) | C68: 1129000 | D68: ,00 | E68: ,00 | F68: 1129000 | G68: ,00 | H68: 1129000 | I68: ,00 | J68: 1129000 | K68: 100,00 | L68: 660420 | M68: 683625 | N68: 60,55
A69: 3-1-2-02-01-01-0006 | B69: Dotación (prendas de vestir y calzado) | C69: 600000 | D69: ,00 | E69: -600000 | F69: ,00 | G69: ,00 | H69: ,00 | I69: ,00 | J69: ,00 | K69: ,00 | L69: ,00 | M69: ,00 | N69: ,00
A70: 3-1-2-02-01-02 | B70: Otros bienes transportables (excepto productos metálicos, maquinaria y equipo | C70: 65618000 | D70: ,00 | E70: 37094026 | F70: 102712026 | G70: ,00 | H70: 102712026 | I70: ,00 | J70: 94632052 | K70: 92,13 | L70: 6023771 | M70: 22339987 | N70: 21,75
A71: 3-1-2-02-01-02-0002 | B71: Pasta o pulpa, papel y productos de papel; impresos y artículos relacionados | C71: 23328000 | D71: ,00 | E71: 2000000 | F71: 25328000 | G71: ,00 | H71: 25328000 | I71: ,00 | J71: 23328000 | K71: 92,10 | L71: 5000000 | M71: 8999344 | N71: 35,53
A72: 3-1-2-02-01-02-0003 | B72: Productos de hornos de coque, de refinación de petróleo y combustible | C72: 10816000 | D72: ,00 | E72: ,00 | F72: 10816000 | G72: ,00 | H72: 10816000 | I72: ,00 | J72: 10816000 | K72: 100,00 | L72: 970221 | M72: 3239325 | N72: 29,95
A73: 3-1-2-02-01-02-0006 | B73: Productos de caucho y plástico | C73: 19639000 | D73: ,00 | E73: 35094026 | F73: 54733026 | G73: ,00 | H73: 54733026 | I73: ,00 | J73: 48653052 | K73: 88,89 | L73: ,00 | M73: 5873781 | N73: 10,73
A74: 3-1-2-02-01-02-0008 | B74: Muebles; otros bienes transportables n.c.p. | C74: 11835000 | D74: ,00 | E74: ,00 | F74: 11835000 | G74: ,00 | H74: 11835000 | I74: ,00 | J74: 11835000 | K74: 100,00 | L74: 53550 | M74: 4227537 | N74: 35,72
A75: 3-1-2-02-01-03 | B75: Productos metálicos | C75: 83663000 | D75: ,00 | E75: -33993654 | F75: 49669346 | G75: ,00 | H75: 49669346 | I75: ,00 | J75: 47669346 | K75: 95,97 | L75: 6519758 | M75: 17360236 | N75: 34,95
A76: 3-1-2-02-01-03-0002 | B76: Productos metálicos elaborados (excepto maquinaria y equipo) | C76: 3777000 | D76: ,00 | E76: 1000000 | F76: 4777000 | G76: ,00 | H76: 4777000 | I76: ,00 | J76: 3777000 | K76: 79,07 | L76: 1925063 | M76: 1925063 | N76: 40,30
A77: 3-1-2-02-01-03-0003 | B77: Maquinaria para uso general | C77: ,00 | D77: ,00 | E77: 1000000 | F77: 1000000 | G77: ,00 | H77: 1000000 | I77: ,00 | J77: ,00 | K77: ,00 | L77: ,00 | M77: ,00 | N77: ,00
A78: 3-1-2-02-01-03-0005 | B78: Maquinaria de oficina, contabilidad e informática | C78: 71335000 | D78: ,00 | E78: -34994026 | F78: 36340974 | G78: ,00 | H78: 36340974 | I78: ,00 | J78: 36340974 | K78: 100,00 | L78: 4416195 | M78: 12194442 | N78: 33,56
A79: 3-1-2-02-01-03-0006 | B79: Maquinaria y aparatos eléctricos | C79: 8551000 | D79: ,00 | E79: -999628 | F79: 7551372 | G79: ,00 | H79: 7551372 | I79: ,00 | J79: 7551372 | K79: 100,00 | L79: 178500 | M79: 3240731 | N79: 42,92
A80: 3-1-2-02-02 | B80: Adquisición de servicios | C80: 3592165000 | D80: ,00 | E80: -3000372 | F80: 3589164628 | G80: ,00 | H80: 3589164628 | I80: 18997807 | J80: 3038869576 | K80: 84,67 | L80: 221170539 | M80: 1849207943 | N80: 51,52
A81: 3-1-2-02-02-01 | B81: Servicios de venta y de distribución; alojamiento; servicios de suministro de comidas y bebidas; servicios de transporte; y servicios de distribución de electricidad, gas y agua | C81: ,00 | D81: ,00 | E81: 634154527 | F81: 634154527 | G81: ,00 | H81: 634154527 | I81: ,00 | J81: 545766037 | K81: 86,06 | L81: 45837552 | M81: 280334625 | N81: 44,21
A82: 3-1-2-02-02-01-0002 | B82: Servicios de transporte de pasajeros | C82: ,00 | D82: ,00 | E82: 1500000 | F82: 1500000 | G82: ,00 | H82: 1500000 | I82: ,00 | J82: ,00 | K82: ,00 | L82: ,00 | M82: ,00 | N82: ,00
A83: 3-1-2-02-02-01-0004 | B83: Servicios de alquiler de vehículos de transporte con operario | C83: ,00 | D83: ,00 | E83: 440849527 | F83: 440849527 | G83: ,00 | H83: 440849527 | I83: ,00 | J83: 373917339 | K83: 84,82 | L83: 32844050 | M83: 199819493 | N83: 45,33
A84: 3-1-2-02-02-01-0006 | B84: Servicios postales y de mensajería | C84: ,00 | D84: ,00 | E84: 191805000 | F84: 191805000 | G84: ,00 | H84: 191805000 | I84: ,00 | J84: 171848698 | K84: 89,60 | L84: 12993502 | M84: 80515132 | N84: 41,98
A85: 3-1-2-02-02-01-0006-001 | B85: Servicios de mensajería | C85: ,00 | D85: ,00 | E85: 191805000 | F85: 191805000 | G85: ,00 | H85: 191805000 | I85: ,00 | J85: 171848698 | K85: 89,60 | L85: 12993502 | M85: 80515132 | N85: 41,98
A86: 3-1-2-02-02-02 | B86: Servicios financieros y servicios conexos, servicios inmobiliarios y servicios de leasing | C86: 1032639000 | D86: ,00 | E86: -137093504 | F86: 895545496 | G86: ,00 | H86: 895545496 | I86: 216611 | J86: 757776302 | K86: 84,62 | L86: 31190225 | M86: 446984277 | N86: 49,91
A87: 3-1-2-02-02-02-0001 | B87: Servicios financieros y servicios conexos | C87: 124146000 | D87: ,00 | E87: ,00 | F87: 124146000 | G87: ,00 | H87: 124146000 | I87: 216611 | J87: 101936178 | K87: 82,11 | L87: 216611 | M87: 101103585 | N87: 81,44
A88: 3-1-2-02-02-02-0001-007 | B88: Servicios de seguros de vehículos automotores | C88: 6959000 | D88: ,00 | E88: ,00 | F88: 6959000 | G88: ,00 | H88: 6959000 | I88: ,00 | J88: 5802040 | K88: 83,37 | L88: ,00 | M88: 5802040 | N88: 83,37
A89: 3-1-2-02-02-02-0001-009 | B89: Servicios de seguros generales de responsabilidad civil | C89: 88506000 | D89: ,00 | E89: ,00 | F89: 88506000 | G89: ,00 | H89: 88506000 | I89: ,00 | J89: 73791541 | K89: 83,37 | L89: ,00 | M89: 73791541 | N89: 83,37
A90: 3-1-2-02-02-02-0001-010 | B90: Servicios de seguro obligatorio de accidentes de tránsito (SOAT) | C90: 673000 | D90: ,00 | E90: ,00 | F90: 673000 | G90: ,00 | H90: 673000 | I90: ,00 | J90: 673000 | K90: 100,00 | L90: ,00 | M90: 673000 | N90: 100,00
A91: 3-1-2-02-02-02-0001-011 | B91: Servicios de administración de fondos de pensiones y cesantías | C91: 3175000 | D91: ,00 | E91: ,00 | F91: 3175000 | G91: ,00 | H91: 3175000 | I91: 216611 | J91: 1645517 | K91: 51,83 | L91: 216611 | M91: 1645517 | N91: 51,83
A92: 3-1-2-02-02-02-0001-012 | B92: Otros servicios de seguros distintos de los seguros de vida n.c.p. | C92: 24833000 | D92: ,00 | E92: ,00 | F92: 24833000 | G92: ,00 | H92: 24833000 | I92: ,00 | J92: 20024080 | K92: 80,63 | L92: ,00 | M92: 19191487 | N92: 77,28
A93: 3-1-2-02-02-02-0002 | B93: Servicios inmobiliarios | C93: 480180000 | D93: ,00 | E93: 109431992 | F93: 589611992 | G93: ,00 | H93: 589611992 | I93: ,00 | J93: 589426502 | K93: 99,97 | L93: 30973614 | M93: 308941188 | N93: 52,40
A94: 3-1-2-02-02-02-0002-001 | B94: Servicios de alquiler o arrendamiento con o sin opción de compra relativos a bienes inmuebles no residenciales propios o arrendados | C94: 480180000 | D94: ,00 | E94: 109431992 | F94: 589611992 | G94: ,00 | H94: 589611992 | I94: ,00 | J94: 589426502 | K94: 99,97 | L94: 30973614 | M94: 308941188 | N94: 52,40
A95: 3-1-2-02-02-02-0003 | B95: Servicios de arrendamiento o alquiler sin operario | C95: 428313000 | D95: ,00 | E95: -246525496 | F95: 181787504 | G95: ,00 | H95: 181787504 | I95: ,00 | J95: 66413622 | K95: 36,53 | L95: ,00 | M95: 36939504 | N95: 20,32
A96: 3-1-2-02-02-02-0003-001 | B96: Servicios de arrendamiento o alquiler de automóviles y furgonetas sin operario | C96: 428313000 | D96: ,00 | E96: -428313000 | F96: ,00 | G96: ,00 | H96: ,00 | I96: ,00 | J96: ,00 | K96: ,00 | L96: ,00 | M96: ,00 | N96: ,00
A97: 3-1-2-02-02-02-0003-005 | B97: Derechos de uso de productos de propiedad intelectual y otros productos similares | C97: ,00 | D97: ,00 | E97: 181787504 | F97: 181787504 | G97: ,00 | H97: 181787504 | I97: ,00 | J97: 66413622 | K97: 36,53 | L97: ,00 | M97: 36939504 | N97: 20,32
A98: 3-1-2-02-02-03 | B98: Servicios prestados a las empresas y servicios de producción | C98: 2190534000 | D98: ,00 | E98: -474994154 | F98: 1715539846 | G98: ,00 | H98: 1715539846 | I98: 6244098 | J98: 1445168050 | K98: 84,24 | L98: 98765083 | M98: 960621269 | N98: 56,00
A99: 3-1-2-02-02-03-0002 | B99: Servicios jurídicos y contables | C99: 3600000 | D99: ,00 | E99: 1000000 | F99: 4600000 | G99: ,00 | H99: 4600000 | I99: ,00 | J99: 1979208 | K99: 43,03 | L99: 659736 | M99: 1979208 | N99: 43,03
A100: 3-1-2-02-02-03-0002-001 | B100: Servicios de documentación y certificación jurídica | C100: 3600000 | D100: ,00 | E100: 1000000 | F100: 4600000 | G100: ,00 | H100: 4600000 | I100: ,00 | J100: 1979208 | K100: 43,03 | L100: 659736 | M100: 1979208 | N100: 43,03
A101: 3-1-2-02-02-03-0003 | B101: Otros servicios profesionales, científicos y técnicos | C101: 322543000 | D101: ,00 | E101: -72543000 | F101: 250000000 | G101: ,00 | H101: 250000000 | I101: ,00 | J101: 120254395 | K101: 48,10 | L101: 18345000 | M101: 60724048 | N101: 24,29
A102: 3-1-2-02-02-03-0003-001 | B102: Servicios de consultoría en administración y servicios de gestión; servicios de tecnología de la información | C102: 82543000 | D102: ,00 | E102: -82543000 | F102: ,00 | G102: ,00 | H102: ,00 | I102: ,00 | J102: ,00 | K102: ,00 | L102: ,00 | M102: ,00 | N102: ,00
A103: 3-1-2-02-02-03-0003-004 | B103: Servicios de suministro de infraestructura de hosting y de tecnología de la información (TI) | C103: ,00 | D103: ,00 | E103: 10000000 | F103: 10000000 | G103: ,00 | H103: 10000000 | I103: ,00 | J103: 4351495 | K103: 43,51 | L103: ,00 | M103: 725248 | N103: 7,25
A104: 3-1-2-02-02-03-0003-013 | B104: Otros servicios profesionales y técnicos n.c.p. | C104: 240000000 | D104: ,00 | E104: ,00 | F104: 240000000 | G104: ,00 | H104: 240000000 | I104: ,00 | J104: 115902900 | K104: 48,29 | L104: 18345000 | M104: 59998800 | N104: 25,00
A105: 3-1-2-02-02-03-0004 | B105: Servicios de telecomunicaciones, transmisión y suministro de información | C105: 221191000 | D105: ,00 | E105: ,00 | F105: 221191000 | G105: ,00 | H105: 221191000 | I105: 6244098 | J105: 154870135 | K105: 70,02 | L105: 15085108 | M105: 105360029 | N105: 47,63
A106: 3-1-2-02-02-03-0004-001 | B106: Servicios de telefonía fija | C106: 51000000 | D106: ,00 | E106: ,00 | F106: 51000000 | G106: ,00 | H106: 51000000 | I106: 3107070 | J106: 24827640 | K106: 48,68 | L106: 3107070 | M106: 24827640 | N106: 48,68
A107: 3-1-2-02-02-03-0004-002 | B107: Servicios de telecomunicaciones móviles | C107: 44100000 | D107: ,00 | E107: ,00 | F107: 44100000 | G107: ,00 | H107: 44100000 | I107: 3137028 | J107: 23950375 | K107: 54,31 | L107: 3137028 | M107: 23950375 | N107: 54,31
A108: 3-1-2-02-02-03-0004-004 | B108: Servicios de telecomunicaciones a través de internet | C108: 121091000 | D108: ,00 | E108: ,00 | F108: 121091000 | G108: ,00 | H108: 121091000 | I108: ,00 | J108: 106092120 | K108: 87,61 | L108: 8841010 | M108: 56582014 | N108: 46,73
A109: 3-1-2-02-02-03-0004-007 | B109: Servicios de transmisión de programas de radio y televisión | C109: 5000000 | D109: ,00 | E109: ,00 | F109: 5000000 | G109: ,00 | H109: 5000000 | I109: ,00 | J109: ,00 | K109: ,00 | L109: ,00 | M109: ,00 | N109: ,00
A110: 3-1-2-02-02-03-0005 | B110: Servicios de soporte | C110: 1140206000 | D110: ,00 | E110: -345957770 | F110: 794248230 | G110: ,00 | H110: 794248230 | I110: ,00 | J110: 733199016 | K110: 92,31 | L110: 57966467 | M110: 391183607 | N110: 49,25
A111: 3-1-2-02-02-03-0005-001 | B111: Servicios de protección (guardas de seguridad) | C111: 505547000 | D111: ,00 | E111: -13750236 | F111: 491796764 | G111: ,00 | H111: 491796764 | I111: ,00 | J111: 458341200 | K111: 93,20 | L111: 32596491 | M111: 201877734 | N111: 41,05
A112: 3-1-2-02-02-03-0005-002 | B112: Servicios de limpieza general | C112: 268486000 | D112: ,00 | E112: -9074534 | F112: 259411466 | G112: ,00 | H112: 259411466 | I112: ,00 | J112: 235817816 | K112: 90,90 | L112: 25369976 | M112: 164046828 | N112: 63,24
A113: 3-1-2-02-02-03-0005-003 | B113: Servicios de copia y reproducción | C113: ,00 | D113: ,00 | E113: 1000000 | F113: 1000000 | G113: ,00 | H113: 1000000 | I113: ,00 | J113: ,00 | K113: ,00 | L113: ,00 | M113: ,00 | N113: ,00
A114: 3-1-2-02-02-03-0005-004 | B114: Servicios de correo | C114: 126368000 | D114: ,00 | E114: -126368000 | F114: ,00 | G114: ,00 | H114: ,00 | I114: ,00 | J114: ,00 | K114: ,00 | L114: ,00 | M114: ,00 | N114: ,00
A115: 3-1-2-02-02-03-0005-006 | B115: Servicios de organización y asistencia de convenciones y ferias | C115: 49500000 | D115: ,00 | E115: -7460000 | F115: 42040000 | G115: ,00 | H115: 42040000 | I115: ,00 | J115: 39040000 | K115: 92,86 | L115: ,00 | M115: 25259045 | N115: 60,08
A116: 3-1-2-02-02-03-0005-007 | B116: Otros servicios de apoyo y de información no clasificados previamente | C116: 190305000 | D116: ,00 | E116: -190305000 | F116: ,00 | G116: ,00 | H116: ,00 | I116: ,00 | J116: ,00 | K116: ,00 | L116: ,00 | M116: ,00 | N116: ,00
A117: 3-1-2-02-02-03-0006 | B117: Servicios de mantenimiento, reparación e instalación (excepto servicios de construcción) | C117: 494994000 | D117: ,00 | E117: -49493384 | F117: 445500616 | G117: ,00 | H117: 445500616 | I117: ,00 | J117: 434865296 | K117: 97,61 | L117: 6708772 | M117: 401374377 | N117: 90,10
A118: 3-1-2-02-02-03-0006-003 | B118: Servicios de mantenimiento y reparación de computadores y equipo periférico | C118: 21803000 | D118: ,00 | E118: -11803000 | F118: 10000000 | G118: ,00 | H118: 10000000 | I118: ,00 | J118: ,00 | K118: ,00 | L118: ,00 | M118: ,00 | N118: ,00
A119: 3-1-2-02-02-03-0006-005 | B119: Servicios de mantenimiento y reparación de otra maquinaria y otro equipo | C119: ,00 | D119: ,00 | E119: 21803000 | F119: 21803000 | G119: ,00 | H119: 21803000 | I119: ,00 | J119: 21167680 | K119: 97,09 | L119: ,00 | M119: 10042443 | N119: 46,06
A120: 3-1-2-02-02-03-0006-012 | B120: Servicios de reparación de otros bienes | C120: 473191000 | D120: ,00 | E120: -59493384 | F120: 413697616 | G120: ,00 | H120: 413697616 | I120: ,00 | J120: 413697616 | K120: 100,00 | L120: 6708772 | M120: 391331934 | N120: 94,59
A121: 3-1-2-02-02-03-0007 | B121: Otros servicios de fabricación; servicios de edición, impresión y reproducción; servicios de recuperación de materiales | C121: 8000000 | D121: ,00 | E121: -8000000 | F121: ,00 | G121: ,00 | H121: ,00 | I121: ,00 | J121: ,00 | K121: ,00 | L121: ,00 | M121: ,00 | N121: ,00
A122: 3-1-2-02-02-03-0007-002 | B122: Servicios de impresión | C122: 8000000 | D122: ,00 | E122: -8000000 | F122: ,00 | G122: ,00 | H122: ,00 | I122: ,00 | J122: ,00 | K122: ,00 | L122: ,00 | M122: ,00 | N122: ,00
A123: 3-1-2-02-02-04 | B123: Servicios administrativos del Gobierno | C123: 142000000 | D123: ,00 | E123: ,00 | F123: 142000000 | G123: ,00 | H123: 142000000 | I123: 12537098 | J123: 88234428 | K123: 62,14 | L123: 12537098 | M123: 88234428 | N123: 62,14
A124: 3-1-2-02-02-04-0001 | B124: Otros servicios públicos generales del Gobierno n.c.p. | C124: 142000000 | D124: ,00 | E124: ,00 | F124: 142000000 | G124: ,00 | H124: 142000000 | I124: 12537098 | J124: 88234428 | K124: 62,14 | L124: 12537098 | M124: 88234428 | N124: 62,14
A125: 3-1-2-02-02-04-0001-001 | B125: Energía | C125: 108000000 | D125: ,00 | E125: ,00 | F125: 108000000 | G125: ,00 | H125: 108000000 | I125: 8720240 | J125: 76633860 | K125: 70,96 | L125: 8720240 | M125: 76633860 | N125: 70,96
A126: 3-1-2-02-02-04-0001-002 | B126: Acueducto y alcantarillado | C126: 24000000 | D126: ,00 | E126: ,00 | F126: 24000000 | G126: ,00 | H126: 24000000 | I126: 2087198 | J126: 7677558 | K126: 31,99 | L126: 2087198 | M126: 7677558 | N126: 31,99
A127: 3-1-2-02-02-04-0001-003 | B127: Aseo | C127: 10000000 | D127: ,00 | E127: ,00 | F127: 10000000 | G127: ,00 | H127: 10000000 | I127: 1729660 | J127: 3923010 | K127: 39,23 | L127: 1729660 | M127: 3923010 | N127: 39,23
A128: 3-1-2-02-02-05 | B128: Viáticos y gastos de viaje | C128: 30000000 | D128: ,00 | E128: -30000000 | F128: ,00 | G128: ,00 | H128: ,00 | I128: ,00 | J128: ,00 | K128: ,00 | L128: ,00 | M128: ,00 | N128: ,00
A129: 3-1-2-02-02-06 | B129: Capacitación | C129: 38992000 | D129: ,00 | E129: 864000 | F129: 39856000 | G129: ,00 | H129: 39856000 | I129: ,00 | J129: 39856000 | K129: 100,00 | L129: ,00 | M129: ,00 | N129: ,00
A130: 3-1-2-02-02-07 | B130: Bienestar e incentivos | C130: 102000000 | D130: ,00 | E130: 2932039 | F130: 104932039 | G130: ,00 | H130: 104932039 | I130: ,00 | J130: 104932039 | K130: 100,00 | L130: 32840581 | M130: 47343617 | N130: 45,12
A131: 3-1-2-02-02-08 | B131: Salud Ocupacional | C131: 56000000 | D131: ,00 | E131: 1136720 | F131: 57136720 | G131: ,00 | H131: 57136720 | I131: ,00 | J131: 57136720 | K131: 100,00 | L131: ,00 | M131: 25689727 | N131: 44,96
A132: 3-1-3 | B132: Gastos diversos | C132: ,00 | D132: ,00 | E132: 500000 | F132: 500000 | G132: ,00 | H132: 500000 | I132: ,00 | J132: ,00 | K132: ,00 | L132: ,00 | M132: ,00 | N132: ,00
A133: 3-1-3-01 | B133: Impuestos | C133: ,00 | D133: ,00 | E133: 500000 | F133: 500000 | G133: ,00 | H133: 500000 | I133: ,00 | J133: ,00 | K133: ,00 | L133: ,00 | M133: ,00 | N133: ,00
A134: 3-1-3-01-03 | B134: Impuesto de vehículos | C134: ,00 | D134: ,00 | E134: 500000 | F134: 500000 | G134: ,00 | H134: 500000 | I134: ,00 | J134: ,00 | K134: ,00 | L134: ,00 | M134: ,00 | N134: ,00
A135: 3-3 | B135: INVERSIÓN | C135: 175711625000 | D135: 376404000 | E135: 3226404000 | F135: 178938029000 | G135: ,00 | H135: 178938029000 | I135: 476523786 | J135: 90463696137 | K135: 50,56 | L135: 5661824478 | M135: 54518850772 | N135: 30,47
A136: 3-3-1 | B136: DIRECTA | C136: 175711625000 | D136: 376404000 | E136: 3226404000 | F136: 178938029000 | G136: ,00 | H136: 178938029000 | I136: 476523786 | J136: 90463696137 | K136: 50,56 | L136: 5661824478 | M136: 54518850772 | N136: 30,47
A137: 3-3-1-15 | B137: Bogotá Mejor Para Todos | C137: 175711625000 | D137: 376404000 | E137: 3226404000 | F137: 178938029000 | G137: ,00 | H137: 178938029000 | I137: 476523786 | J137: 90463696137 | K137: 50,56 | L137: 5661824478 | M137: 54518850772 | N137: 30,47
A138: 3-3-1-15-01 | B138: Pilar Igualdad de calidad de vida | C138: 37994000000 | D138: 376404000 | E138: 6295528766 | F138: 44289528766 | G138: ,00 | H138: 44289528766 | I138: 60122444 | J138: 43627007949 | K138: 98,50 | L138: 4007829456 | M138: 29298422914 | N138: 66,15
A139: 3-3-1-15-01-11 | B139: Mejores oportunidades para el desarrollo a través de la cultura, la recreación y el deporte | C139: 37994000000 | D139: 376404000 | E139: 6295528766 | F139: 44289528766 | G139: ,00 | H139: 44289528766 | I139: 60122444 | J139: 43627007949 | K139: 98,50 | L139: 4007829456 | M139: 29298422914 | N139: 66,15
A140: 3-3-1-15-01-11-0997 | B140: Fortalecimiento de los procesos y de agentes de formación del sector | C140: 657000000 | D140: ,00 | E140: -12291067 | F140: 644708933 | G140: ,00 | H140: 644708933 | I140: ,00 | J140: 488708933 | K140: 75,80 | L140: 34784000 | M140: 192057500 | N140: 29,79
A141: 3-3-1-15-01-11-0997-124 | B141: Formación para la transformación del ser | C141: 657000000 | D141: ,00 | E141: -12291067 | F141: 644708933 | G141: ,00 | H141: 644708933 | I141: ,00 | J141: 488708933 | K141: 75,80 | L141: 34784000 | M141: 192057500 | N141: 29,79
A142: 3-3-1-15-01-11-1008 | B142: Fomento y gestión para el desarrollo cultural | C142: 3773000000 | D142: 376404000 | E142: 6376404000 | F142: 10149404000 | G142: ,00 | H142: 10149404000 | I142: 60122444 | J142: 9659530133 | K142: 95,17 | L142: 3668596679 | M142: 5567851606 | N142: 54,86
A143: 3-3-1-15-01-11-1008-126 | B143: Política de emprendimiento e industrias culturales y creativas | C143: 593508000 | D143: ,00 | E143: ,00 | F143: 593508000 | G143: ,00 | H143: 593508000 | I143: ,00 | J143: 593508000 | K143: 100,00 | L143: 54109000 | M143: 342386300 | N143: 57,69
A144: 3-3-1-15-01-11-1008-127 | B144: Programa de estímulos | C144: 3179492000 | D144: 376404000 | E144: 6376404000 | F144: 9555896000 | G144: ,00 | H144: 9555896000 | I144: 60122444 | J144: 9066022133 | K144: 94,87 | L144: 3614487679 | M144: 5225465306 | N144: 54,68
A145: 3-3-1-15-01-11-1011 | B145: Lectura, escritura y redes de conocimiento | C145: 33564000000 | D145: ,00 | E145: -68584167 | F145: 33495415833 | G145: ,00 | H145: 33495415833 | I145: ,00 | J145: 33478768883 | K145: 99,95 | L145: 304448777 | M145: 23538513808 | N145: 70,27
A146: 3-3-1-15-01-11-1011-125 | B146: Plan Distrital de lectura y escritura | C146: 33564000000 | D146: ,00 | E146: -68584167 | F146: 33495415833 | G146: ,00 | H146: 33495415833 | I146: ,00 | J146: 33478768883 | K146: 99,95 | L146: 304448777 | M146: 23538513808 | N146: 70,27
A147: 3-3-1-15-02 | B147: Pilar Democracia urbana | C147: 124806805000 | D147: ,00 | E147: -2658992793 | F147: 122147812207 | G147: ,00 | H147: 122147812207 | I147: 353473966 | J147: 36611014000 | K147: 29,97 | L147: 776349871 | M147: 18912894564 | N147: 15,48
A148: 3-3-1-15-02-17 | B148: Espacio público, derecho de todos | C148: 124806805000 | D148: ,00 | E148: -2658992793 | F148: 122147812207 | G148: ,00 | H148: 122147812207 | I148: 353473966 | J148: 36611014000 | K148: 29,97 | L148: 776349871 | M148: 18912894564 | N148: 15,48
A149: 3-3-1-15-02-17-0992 | B149: Patrimonio e Infraestructura cultural fortalecida | C149: 124806805000 | D149: ,00 | E149: -2658992793 | F149: 122147812207 | G149: ,00 | H149: 122147812207 | I149: 353473966 | J149: 36611014000 | K149: 29,97 | L149: 776349871 | M149: 18912894564 | N149: 15,48
A150: 3-3-1-15-02-17-0992-139 | B150: Gestión de infraestructura cultural y deportiva nueva, rehabilitada y recuperada | C150: 124806805000 | D150: ,00 | E150: -2658992793 | F150: 122147812207 | G150: ,00 | H150: 122147812207 | I150: 353473966 | J150: 36611014000 | K150: 29,97 | L150: 776349871 | M150: 18912894564 | N150: 15,48
A151: 3-3-1-15-03 | B151: Pilar Construcción de comunidad y cultura ciudadana | C151: 5445000000 | D151: ,00 | E151: 48259835 | F151: 5493259835 | G151: ,00 | H151: 5493259835 | I151: 57000000 | J151: 3331875079 | K151: 60,65 | L151: 480690500 | M151: 1807807932 | N151: 32,91
A152: 3-3-1-15-03-25 | B152: Cambio cultural y construcción del tejido social para la vida | C152: 5445000000 | D152: ,00 | E152: 48259835 | F152: 5493259835 | G152: ,00 | H152: 5493259835 | I152: 57000000 | J152: 3331875079 | K152: 60,65 | L152: 480690500 | M152: 1807807932 | N152: 32,91
A153: 3-3-1-15-03-25-0987 | B153: Saberes sociales para la cultura ciudadana y la transformación cultural | C153: 3015000000 | D153: ,00 | E153: 70166834 | F153: 3085166834 | G153: ,00 | H153: 3085166834 | I153: 27000000 | J153: 2005387267 | K153: 65,00 | L153: 333608000 | M153: 972712667 | N153: 31,53
A154: 3-3-1-15-03-25-0987-156 | B154: Cultura ciudadana para la convivencia | C154: 3015000000 | D154: ,00 | E154: 70166834 | F154: 3085166834 | G154: ,00 | H154: 3085166834 | I154: 27000000 | J154: 2005387267 | K154: 65,00 | L154: 333608000 | M154: 972712667 | N154: 31,53
A155: 3-3-1-15-03-25-1016 | B155: Poblaciones diversas e interculturales | C155: 749000000 | D155: ,00 | E155: ,00 | F155: 749000000 | G155: ,00 | H155: 749000000 | I155: ,00 | J155: 585030877 | K155: 78,11 | L155: 99427500 | M155: 385394264 | N155: 51,45
A156: 3-3-1-15-03-25-1016-157 | B156: Intervención integral en territorios y poblaciones priorizadas a través de cultura, recreación y deporte | C156: 749000000 | D156: ,00 | E156: ,00 | F156: 749000000 | G156: ,00 | H156: 749000000 | I156: ,00 | J156: 585030877 | K156: 78,11 | L156: 99427500 | M156: 385394264 | N156: 51,45
A157: 3-3-1-15-03-25-1137 | B157: Comunidades culturales para la paz | C157: 1681000000 | D157: ,00 | E157: -21906999 | F157: 1659093001 | G157: ,00 | H157: 1659093001 | I157: 30000000 | J157: 741456935 | K157: 44,69 | L157: 47655000 | M157: 449701001 | N157: 27,11
A158: 3-3-1-15-03-25-1137-157 | B158: Intervención integral en territorios y poblaciones priorizadas a través de cultura, recreación y deporte | C158: 1681000000 | D158: ,00 | E158: -21906999 | F158: 1659093001 | G158: ,00 | H158: 1659093001 | I158: 30000000 | J158: 741456935 | K158: 44,69 | L158: 47655000 | M158: 449701001 | N158: 27,11
A159: 3-3-1-15-07 | B159: Eje transversal Gobierno legítimo, fortalecimiento local y eficiencia | C159: 7465820000 | D159: ,00 | E159: -458391808 | F159: 7007428192 | G159: ,00 | H159: 7007428192 | I159: 5927376 | J159: 6893799109 | K159: 98,38 | L159: 396954651 | M159: 4499725362 | N159: 64,21
A160: 3-3-1-15-07-42 | B160: Transparencia, gestión pública y servicio a la ciudadanía | C160: 2586000000 | D160: ,00 | E160: -407940267 | F160: 2178059733 | G160: ,00 | H160: 2178059733 | I160: ,00 | J160: 2155009436 | K160: 98,94 | L160: 203673631 | M160: 895522260 | N160: 41,12
A161: 3-3-1-15-07-42-1009 | B161: Transparencia y gestión pública para todos | C161: 2586000000 | D161: ,00 | E161: -407940267 | F161: 2178059733 | G161: ,00 | H161: 2178059733 | I161: ,00 | J161: 2155009436 | K161: 98,94 | L161: 203673631 | M161: 895522260 | N161: 41,12
A162: 3-3-1-15-07-42-1009-185 | B162: Fortalecimiento a la gestión pública efectiva y eficiente | C162: 2586000000 | D162: ,00 | E162: -407940267 | F162: 2178059733 | G162: ,00 | H162: 2178059733 | I162: ,00 | J162: 2155009436 | K162: 98,94 | L162: 203673631 | M162: 895522260 | N162: 41,12
A163: 3-3-1-15-07-43 | B163: Modernización institucional | C163: 1467000000 | D163: ,00 | E163: -31671041 | F163: 1435328959 | G163: ,00 | H163: 1435328959 | I163: 5927376 | J163: 1411426440 | K163: 98,33 | L163: 135021020 | M163: 716347811 | N163: 49,91
A164: 3-3-1-15-07-43-1012 | B164: Fortalecimiento a la Gestión | C164: 1467000000 | D164: ,00 | E164: -31671041 | F164: 1435328959 | G164: ,00 | H164: 1435328959 | I164: 5927376 | J164: 1411426440 | K164: 98,33 | L164: 135021020 | M164: 716347811 | N164: 49,91
A165: 3-3-1-15-07-43-1012-189 | B165: Modernización administrativa | C165: 1467000000 | D165: ,00 | E165: -31671041 | F165: 1435328959 | G165: ,00 | H165: 1435328959 | I165: 5927376 | J165: 1411426440 | K165: 98,33 | L165: 135021020 | M165: 716347811 | N165: 49,91
A166: 3-3-1-15-07-44 | B166: Gobierno y ciudadanía digital | C166: 600000000 | D166: ,00 | E166: -18780500 | F166: 581219500 | G166: ,00 | H166: 581219500 | I166: ,00 | J166: 514543233 | K166: 88,53 | L166: 46851000 | M166: 264922333 | N166: 45,58
A167: 3-3-1-15-07-44-1007 | B167: Información y ciudadanía digital para todos | C167: 600000000 | D167: ,00 | E167: -18780500 | F167: 581219500 | G167: ,00 | H167: 581219500 | I167: ,00 | J167: 514543233 | K167: 88,53 | L167: 46851000 | M167: 264922333 | N167: 45,58
A168: 3-3-1-15-07-44-1007-192 | B168: Fortalecimiento institucional a través del uso de TIC | C168: 600000000 | D168: ,00 | E168: -18780500 | F168: 581219500 | G168: ,00 | H168: 581219500 | I168: ,00 | J168: 514543233 | K168: 88,53 | L168: 46851000 | M168: 264922333 | N168: 45,58
A169: 3-3-1-15-07-45 | B169: Gobernanza e influencia local, regional e internacional | C169: 2812820000 | D169: ,00 | E169: ,00 | F169: 2812820000 | G169: ,00 | H169: 2812820000 | I169: ,00 | J169: 2812820000 | K169: 100,00 | L169: 11409000 | M169: 2622932958 | N169: 93,25
A170: 3-3-1-15-07-45-1018 | B170: Participación para la democracia cultural, recreativa y deportiva | C170: 2812820000 | D170: ,00 | E170: ,00 | F170: 2812820000 | G170: ,00 | H170: 2812820000 | I170: ,00 | J170: 2812820000 | K170: 100,00 | L170: 11409000 | M170: 2622932958 | N170: 93,25
A171: 3-3-1-15-07-45-1018-196 | B171: Fortalecimiento local, gobernabilidad, gobernanza y participación ciudadana | C171: 2812820000 | D171: ,00 | E171: ,00 | F171: 2812820000 | G171: ,00 | H171: 2812820000 | I171: ,00 | J171: 2812820000 | K171: 100,00 | L171: 11409000 | M171: 2622932958 | N171: 93,25
